[Event "PanAm Intercolleagiate-ch 2019"]
[Site "Charlotte"]
[Date "2019.12.29"]
[Round "4.12"]
[White "Burke, John M"]
[Black "Grinberg, Eyal"]
[Result "1/2-1/2"]
[ECO "B51"]
[WhiteElo "2551"]
[BlackElo "2465"]
[Annotator "ChessBase"]
[PlyCount "108"]
[EventDate "2019.12.27"]
[EventType "team-tourn"]
[EventCountry "USA"]
[SourceTitle "playchess.com"]
[Source "ChessBase"]
[SourceQuality "1"]
[TimeControl "5400+30"]

1. e4 {[%emt 1:30:30]} c5 {[%emt 1:30:30]} 2. Nf3 {[%emt 0:00:30]} d6 {[%emt 0:00:30]} 3. Bb5+ {[%emt 0:00:30]} Nd7 {[%emt 0:00:30]} 4. a4 {[%emt 0:00:30]} Ngf6 {[%emt 0:00:30]} 5. Nc3 {[%emt 0:00:30]} a6 {[%emt 0:00:30]} 6. Be2 {[%emt 0:00:30]} e5 {[%emt 0:00:30]} 7. d3 {[%emt 0:00:30]} Be7 {[%emt 0:00:30]} 8. Nd2 {[%emt 0:00:30]} Nf8 {[%emt 0:00:30]} 9. Nc4 {[%emt 0:00:30]} Ne6 {[%emt 0:00:30]} 10. O-O {[%emt 0:00:30]} O-O {[%emt 0:00:30]} 11. a5 {[%emt 0:00:30]} Bd7 {[%emt 0:00:30]} 12. Na4 {[%emt 0:00:30]} Bc6 {[%emt 0:00:30]} 13. Nab6 {[%emt 0:00:30]} Rb8 {[%emt 0:00:30]} 14. c3 {[%emt 0:00:30]} Nd7 {[%emt 0:00:30]} 15. g3 {[%emt 0:00:30]} Nxb6 {[%emt 0:00:30]} 16. Nxb6 {[%emt 0:00:30]} Nc7 {[%emt 0:00:30]} 17. Bg4 {[%emt 0:00:30]} d5 {[%emt 0:00:30]} 18. Qe2 {[%emt 0:00:30]} Re8 {[%emt 0:00:30]} 19. c4 {[%emt 0:00:30]} dxe4 {[%emt 0:00:30]} 20. dxe4 {[%emt 0:00:30]} Ne6 {[%emt 0:00:30]} 21. Bxe6 {[%emt 0:00:30]} fxe6 {[%emt 0:00:30]} 22. f3 {[%emt 0:00:30]} Rf8 {[%emt 0:00:30]} 23. Be3 {[%emt 0:00:30]} Qe8 {[%emt 0:00:30]} 24. Rad1 {[%emt 0:00:30]} Rd8 {[%emt 0:00:30]} 25. Rxd8 {[%emt 0:00:30]} Qxd8 {[%emt 0:00:30]} 26. Rd1 {[%emt 0:00:30]} Qc7 {[%emt 0:00:30]} 27. Kg2 {[%emt 0:00:30]} Rd8 {[%emt 0:00:30]} 28. Rd2 {[%emt 0:00:30]} Rxd2 {[%emt 0:00:30]} 29. Qxd2 {[%emt 0:00:30]} Qd6 {[%emt 0:00:30]} 30. Qc3 {[%emt 0:00:30]} Bd8 {[%emt 0:00:30]} 31. Qa3 {[%emt 0:00:30]} Bxb6 {[%emt 0:00:30]} 32. axb6 {[%emt 0:00:30]} Qd1 {[%emt 0:00:30]} 33. Qc3 {[%emt 0:00:30]} Qd6 {[%emt 0:00:30]} 34. g4 {[%emt 0:00:30]} h6 {[%emt 0:00:30]} 35. Kg3 {[%emt 0:00:30]} Bd7 {[%emt 0:00:30]} 36. Qa5 {[%emt 0:00:30]} Qd3 {[%emt 0:00:30]} 37. Qxc5 {[%emt 0:00:30]} Ba4 {[%emt 0:00:30]} 38. h4 {[%emt 0:00:30]} Bd1 {[%emt 0:00:30]} 39. g5 {[%emt 0:00:30]} hxg5 {[%emt 0:00:30]} 40. hxg5 {[%emt 0:00:30]} Qe2 {[%emt 0:00:30]} 41. Qc8+ {[%emt 0:00:30]} Kh7 {[%emt 0:00:30]} 42. g6+ {[%emt 0:00:30]} Kxg6 {[%emt 0:00:30]} 43. Qxe6+ {[%emt 0:00:30]} Kh7 {[%emt 0:00:30]} 44. Qf5+ {[%emt 0:00:30]} Kg8 {[%emt 0:00:30]} 45. Bf2 {[%emt 0:00:30]} Qxc4 {[%emt 0:00:30]} 46. Qxe5 {[%emt 0:00:30]} Qf7 {[%emt 0:00:30]} 47. Qc3 {[%emt 0:00:30]} Qg6+ {[%emt 0:00:30]} 48. Kh2 {[%emt 0:00:30]} Qf6 {[%emt 0:00:30]} 49. Qc8+ {[%emt 0:00:30]} Kh7 {[%emt 0:00:30]} 50. Qh3+ {[%emt 0:00:30]} Qh6 {[%emt 0:00:30]} 51. Qxh6+ {[%emt 0:00:30]} Kxh6 {[%emt 0:00:30]} 52. Kg3 {[%emt 0:00:30]} Kg6 {[%emt 0:00:30]} 53. f4 {[%emt 0:00:30]} Kf7 {[%emt 0:00:30]} 54. f5 {[%emt 0:00:30]} g6 {[%emt 0:00:30]} 1/2-1/2

[Event "PanAm Intercolleagiate-ch 2019"]
[Site "Charlotte"]
[Date "2019.12.29"]
[Round "4.13"]
[White "Baryshpolets, Andrey"]
[Black "Rambaldi, Francesco"]
[Result "1/2-1/2"]
[ECO "E04"]
[WhiteElo "2564"]
[BlackElo "2570"]
[Annotator "ChessBase"]
[PlyCount "48"]
[EventDate "2019.12.27"]
[EventType "team-tourn"]
[EventCountry "USA"]
[SourceTitle "playchess.com"]
[Source "ChessBase"]
[SourceQuality "1"]
[TimeControl "5400+30"]

1. d4 {[%emt 0:00:00]} Nf6 {[%emt 0:00:00]} 2. c4 {[%emt 0:00:00]} e6 {[%emt 0:00:02]} 3. Nf3 {[%emt 0:00:16]} d5 {[%emt 0:00:08]} 4. g3 {[%emt 0:00:29]} dxc4 {[%emt 0:00:41]} 5. Bg2 {[%emt 0:00:12]} a6 {[%emt 0:00:15]} 6. Ne5 {[%emt 0:04:47]} Bb4+ {[%emt 0:01:06]} 7. Nc3 {[%emt 0:00:39]} Nd5 {[%emt 0:00:27]} 8. Bd2 {[%emt 0:06:30]} Nb6 {[%emt 0:03:13]} 9. e3 {[%emt 0:01:23]} N8d7 {[%emt 0:04:36]} 10. Nxd7 {[%emt 0:02:56]} Qxd7 {[%emt 0:01:31]} 11. Ne4 {[%emt 0:03:14]} a5 {[%emt 0:18:57]} 12. a3 {[%emt 0:16:25]} Be7 {[%emt 0:01:46]} 13. Nc5 {[%emt 0:09:55]} Bxc5 {[%emt 0:05:23]} 14. dxc5 {[%emt 0:01:02]} Nd5 {[%emt 0:00:06]} 15. Qg4 {[%emt 0:01:46]} O-O {[%emt 0:02:05]} 16. Qxc4 {[%emt 0:00:08]} b6 {[%emt 0:01:10]} 17. Bc3 {[%emt 0:08:19]} Ba6 {[%emt 0:16:51]} 18. Qd4 {[%emt 0:04:25]} f6 {[%emt 0:01:34]} 19. O-O-O {[%emt 0:19:06]} Qc6 {[%emt 0:05:14]} 20. Bxd5 {[%emt 0:00:10]} exd5 {[%emt 0:02:03]} 21. Rhg1 {[%emt 0:00:21]} Rad8 {[%emt 0:10:23]} 22. cxb6 {[%emt 0:01:59]} Qxb6 {[%emt 0:02:35]} 23. Qxb6 {[%emt 0:02:08]} cxb6 {[%emt 0:00:03]} 24. Rd4 {[%emt 0:00:30]} Bc4 {[%emt 0:01:33]} 1/2-1/2

[Event "PanAm Intercolleagiate-ch 2019"]
[Site "Charlotte"]
[Date "2019.12.29"]
[Round "4.16"]
[White "Kevlishvili, Robby"]
[Black "Sorokin, Aleksey"]
[Result "0-1"]
[ECO "C78"]
[WhiteElo "2457"]
[BlackElo "2520"]
[Annotator "ChessBase"]
[PlyCount "55"]
[EventDate "2019.12.27"]
[EventType "team-tourn"]
[EventCountry "USA"]
[SourceTitle "playchess.com"]
[Source "ChessBase"]
[SourceQuality "1"]
[TimeControl "5400+30"]

1. e4 {[%emt 0:00:00]} e5 {[%emt 0:00:00]} 2. Nf3 {[%emt 0:00:00]} Nc6 {[%emt 0:00:01]} 3. Bb5 {[%emt 0:00:01]} a6 {[%emt 0:00:32]} 4. Ba4 {[%emt 0:00:12]} Nf6 {[%emt 0:00:14]} 5. O-O {[%emt 0:00:27]} Bc5 {[%emt 0:00:30]} 6. c3 {[%emt 0:00:44]} b5 {[%emt 0:00:40]} 7. Bb3 {[%emt 0:00:38]} d6 {[%emt 0:01:15]} 8. a4 {[%emt 0:01:11]} Bg4 {[%emt 0:00:58]} 9. h3 {[%emt 0:05:13]} Bxf3 {[%emt 0:03:25]} 10. Qxf3 {[%emt 0:00:08]} Na5 {[%emt 0:00:12]} 11. Bc2 {[%emt 0:00:58]} b4 {[%emt 0:00:16]} 12. Qd1 {[%emt 0:09:21]} Qb8 {[%emt 0:17:38]} 13. d4 {[%emt 0:15:34]} b3 {[%emt 0:01:10]} 14. Bd3 {[%emt 0:00:41]} exd4 {[%emt 0:03:08]} 15. cxd4 {[%emt 0:09:35]} Bxd4 {[%emt 0:00:38]} 16. Bxa6 {[%emt 0:00:39]} Qb6 {[%emt 0:02:44]} 17. Bb5+ {[%emt 0:02:49]} c6 {[%emt 0:00:58]} 18. Bd3 {[%emt 0:00:32]} O-O {[%emt 0:02:20]} 19. Nd2 {[%emt 0:02:18]} Rfe8 {[%emt 0:02:08]} 20. Qf3 {[%emt 0:04:03]} Ra7 {[%emt 0:04:04]} 21. Qg3 {[%emt 0:07:02]} Bc5 {[%emt 0:05:23]} 22. Kh1 {[%emt 0:09:21]} Rae7 {[%emt 0:05:57]} 23. f3 {[%emt 0:05:16]} Bd4 {[%emt 0:18:01]} 24. Nc4 {[%emt 0:10:01]} Nxc4 {[%emt 0:00:13]} 25. Bxc4 {[%emt 0:00:07]} Qb4 {[%emt 0:00:59]} 26. Bd3 {[%emt 0:00:21]} Be5 {[%emt 0:05:02]} 27. Qe1 {[%emt 0:05:36]} Qd4 {[%emt 0:02:10]} 28. Qe3 {[%emt 0:00:53]} 0-1

[Event "PanAm Intercolleagiate-ch 2019"]
[Site "Charlotte"]
[Date "2019.12.30"]
[Round "5.3"]
[White "Vorontsov, Pavlo"]
[Black "Theodorou, Nikolas"]
[Result "1-0"]
[ECO "E70"]
[WhiteElo "2539"]
[BlackElo "2555"]
[Annotator "RC"]
[PlyCount "65"]
[EventDate "2019.12.27"]
[EventType "team-tourn"]
[EventCountry "USA"]
[SourceTitle "playchess.com"]
[Source "ChessBase"]
[SourceQuality "1"]
[TimeControl "5400+30"]

1. c4 {[%emt 1:30:30]} Nf6 {[%emt 1:30:30]} 2. Nc3 {[%emt 0:00:30]} g6 {[%emt 0:00:30]} 3. d4 {[%emt 0:00:30]} Bg7 {[%emt 0:00:30]} 4. e4 {[%emt 0:00:30]} d6 {[%emt 0:00:30]} 5. Nge2 {[%emt 0:00:30]} O-O {[%emt 0:00:30]} 6. Ng3 {[%emt 0:00:30]} h5 {[%emt 0:00:30]} 7. Be2 {[%emt 0:00:30]} b5 {[%emt 0:00:30]} 8. Bf3 {[%emt 0:00:30]} e5 {[%emt 0:00:30]} 9. dxe5 {[%emt 0:00:30]} Ng4 {[%emt 0:00:30]} 10. exd6 {[%emt 0:00:30]} Nc6 {[%emt 0:00:30]} 11. Bxg4 {[%emt 0:00:30]} Bxg4 {[%emt 0:00:30]} 12. f3 {[%emt 0:00:30]} Be6 {[%emt 0:00:30]} 13. cxb5 {[%emt 0:00:30]} Ne5 {[%emt 0:00:30]} 14. f4 {[%emt 0:00:30]} Bg4 {[%emt 0:00:30]} 15. Nge2 {[%emt 0:00:30]} Nc4 {[%emt 0:00:30]} 16. Qd3 {[%emt 0:00:30]} Nxd6 {[%emt 0:00:30]} 17. O-O {[%emt 0:00:30]} a6 {[%emt 0:00:30]} 18. bxa6 {[%emt 0:00:30]} Bc8 {[%emt 0:00:30]} 19. f5 {[%emt 0:00:30]} gxf5 {[%emt 0:00:30]} 20. exf5 {[%emt 0:00:30]} Nxf5 {[%emt 0:00:30]} 21. Qe4 {[%emt 0:00:30]} Rxa6 {[%emt 0:00:30]} 22. Rxf5 {[%emt 0:00:30]} Re8 {[%emt 0:00:30]} 23. Rd5 {[%emt 0:00:30]} Rd6 {[%emt 0:00:30]} 24. Rxd6 {[%emt 0:00:30]} cxd6 {[%emt 0:00:30]} 25. Qf3 {[%emt 0:00:30]} Bxc3 {[%emt 0:00:30]} 26. Nxc3 {[%emt 0:00:30]} Qb6+ {[%emt 0:00:30]} 27. Be3 {[%emt 0:00:30]} Rxe3 {[%emt 0:00:30]} 28. Qf2 {[%emt 0:00:30]} Bb7 {[%emt 0:00:30]} 29. Rf1 {[%emt 0:00:30]} f5 {[%emt 0:00:30]} 30. Nd1 {[%emt 0:00:30]} Re2 {[%emt 0:00:30]} 31. Qxb6 Rxg2+ {[%emt 0:00:30]} 32. Kh1 {[%emt 0:01:00]} Be4 {[%emt 0:00:30]} 33. Rf3 {[%emt 0:00:30]} 1-0

[Event "PanAm Intercolleagiate-ch 2019"]
[Site "Charlotte"]
[Date "2019.12.30"]
[Round "5.8"]
[White "Burke, John M"]
[Black "Hakobyan, Aram"]
[Result "1/2-1/2"]
[ECO "B15"]
[WhiteElo "2551"]
[BlackElo "2576"]
[Annotator "RC"]
[PlyCount "30"]
[EventDate "2019.12.27"]
[EventType "team-tourn"]
[EventCountry "USA"]
[SourceTitle "playchess.com"]
[Source "ChessBase"]
[SourceQuality "1"]
[TimeControl "5400+30"]

1. e4 {[%emt 1:30:30]} c6 {[%emt 1:30:30]} 2. Nc3 {[%emt 0:00:30]} d5 {[%emt 0:00:30]} 3. d4 {[%emt 0:00:30]} dxe4 {[%emt 0:00:30]} 4. Nxe4 {[%emt 0:00:30]} Nf6 {[%emt 0:00:30]} 5. Nxf6+ {[%emt 0:00:30]} exf6 {[%emt 0:00:30]} 6. c3 {[%emt 0:00:30]} Bf5 {[%emt 0:00:30]} 7. Bd3 {[%emt 0:00:30]} Bxd3 {[%emt 0:00:30]} 8. Qxd3 {[%emt 0:00:30]} Bd6 {[%emt 0:00:30]} 9. Nf3 {[%emt 0:00:30]} O-O {[%emt 0:00:30]} 10. O-O {[%emt 0:00:30]} Nd7 {[%emt 0:00:30]} 11. Bd2 {[%emt 0:00:30]} Nc5 {[%emt 0:00:30]} 12. Qc2 {[%emt 0:00:30]} Ne6 {[%emt 0:00:30]} 13. Rfe1 {[%emt 0:00:30]} Bc7 {[%emt 0:00:30]} 14. Re2 {[%emt 0:00:30]} Qd5 {[%emt 0:00:30]} 15. Qb3 {[%emt 0:00:30]} a5 {[%emt 0:00:30]} 1/2-1/2

[Event "PanAm Intercolleagiate-ch 2019"]
[Site "Charlotte"]
[Date "2019.12.30"]
[Round "5.10"]
[White "Stremavicius, Titas"]
[Black "Stukopin, Andrey"]
[Result "1-0"]
[ECO "A03"]
[WhiteElo "2519"]
[BlackElo "2578"]
[Annotator "RC"]
[PlyCount "83"]
[EventDate "2019.12.27"]
[EventType "team-tourn"]
[EventCountry "USA"]
[SourceTitle "playchess.com"]
[Source "ChessBase"]
[SourceQuality "1"]
[TimeControl "5400+30"]

1. f4 {[%emt 0:02:30]} Nf6 {[%emt 0:00:48]} 2. Nf3 {[%emt 0:00:11]} d5 {[%emt 0:01:05]} 3. g3 {[%emt 0:00:18]} c5 {[%emt 0:00:26]} 4. Bg2 {[%emt 0:00:11]} Nc6 {[%emt 0:00:17]} 5. O-O {[%emt 0:00:23]} g6 {[%emt 0:01:12]} 6. d3 {[%emt 0:01:40]} Bg7 {[%emt 0:00:15]} 7. c3 {[%emt 0:03:08]} O-O {[%emt 0:00:32]} 8. a4 {[%emt 0:00:20]} Bd7 {[%emt 0:09:00]} 9. Na3 {[%emt 0:12:40]} Qc8 {[%emt 0:05:18]} 10. Ne5 {[%emt 0:09:31]} Bh3 {[%emt 0:02:50]} 11. Nxc6 {[%emt 0:00:22]} bxc6 {[%emt 0:00:04]} 12. Qe1 {[%emt 0:13:15]} Re8 {[%emt 0:17:11]} 13. e4 {[%emt 0:11:01]} c4 {[%emt 0:04:04]} 14. e5 {[%emt 0:09:47]} Bxg2 {[%emt 0:00:04]} 15. Kxg2 {[%emt 0:00:16]} cxd3 {[%emt 0:00:03]} 16. exf6 {[%emt 0:03:46]} exf6 {[%emt 0:00:03]} 17. Be3 {[%emt 0:01:48]} c5 {[%emt 0:01:38]} 18. Qd2 {[%emt 0:01:27]} Qc6 {[%emt 0:02:22]} 19. Kg1 {[%emt 0:03:02]} c4 {[%emt 0:00:18]} 20. Nb5 {[%emt 0:01:18]} f5 {[%emt 0:01:28]} 21. Rfe1 {[%emt 0:00:55]} a6 {[%emt 0:01:23]} 22. Nd4 {[%emt 0:00:30]} Qd7 {[%emt 0:00:06]} 23. b4 {[%emt 0:03:18]} Re4 {[%emt 0:00:08]} 24. b5 {[%emt 0:07:46]} axb5 {[%emt 0:51:25]} 25. axb5 {[%emt 0:00:10]} Rb8 {[%emt 0:00:00]} 26. b6 {[%emt 0:04:24]} Bf8 {[%emt 0:00:00]} 27. Ra7 {[%emt 0:04:38]} Qe8 {[%emt 0:00:00]} 28. Nf3 {[%emt 0:00:38]} f6 {[%emt 0:00:00]} 29. Kf1 {[%emt 0:00:20]} Qb5 {[%emt 0:00:00]} 30. Qa2 {[%emt 0:04:38]} Rbe8 {[%emt 0:00:00]} 31. Bf2 {[%emt 0:00:47]} Rxe1+ {[%emt 0:00:00]} 32. Nxe1 {[%emt 0:00:02]} Bc5 {[%emt 0:00:00]} 33. Bxc5 {[%emt 0:00:45]} Qxc5 {[%emt 0:00:00]} 34. Ra8 {[%emt 0:00:13]} Qc6 {[%emt 0:00:00]} 35. b7 {[%emt 0:00:46]} Kg7 {[%emt 0:00:00]} 36. b8=Q {[%emt 0:00:36]} Rxb8 {[%emt 0:00:00]} 37. Rxb8 {[%emt 0:00:01]} d4 {[%emt 0:00:00]} 38. Qa7+ {[%emt 0:00:28]} Kh6 {[%emt 0:00:00]} 39. Qxd4 {[%emt 0:00:11]} Qh1+ {[%emt 0:00:00]} 40. Kf2 {[%emt 0:00:08]} Qxh2+ {[%emt 0:00:00]} 41. Ng2 {[%emt 0:00:07]} Qh5 {[%emt 0:00:00]} 42. Re8 {[%emt 0:01:07]} 1-0

[Event "PanAm Intercolleagiate-ch 2019"]
[Site "Charlotte"]
[Date "2019.12.30"]
[Round "6.1"]
[White "Preotu, Razvan"]
[Black "Baryshpolets, Andrey"]
[Result "0-1"]
[ECO "B22"]
[WhiteElo "2487"]
[BlackElo "2564"]
[Annotator "ChessBase"]
[PlyCount "136"]
[EventDate "2019.12.27"]
[EventType "team-tourn"]
[EventCountry "USA"]
[SourceTitle "playchess.com"]
[Source "ChessBase"]
[SourceQuality "1"]
[TimeControl "5400+30"]

1. e4 {[%emt 1:30:30]} c5 {[%emt 1:30:30]} 2. Nf3 {[%emt 0:00:30]} e6 {[%emt 0:00:30]} 3. c3 {[%emt 0:00:30]} Nf6 {[%emt 0:00:30]} 4. e5 {[%emt 0:00:30]} Nd5 {[%emt 0:00:30]} 5. d4 {[%emt 0:00:30]} cxd4 {[%emt 0:00:30]} 6. cxd4 {[%emt 0:00:30]} d6 {[%emt 0:00:30]} 7. Bd3 {[%emt 0:00:30]} dxe5 {[%emt 0:00:30]} 8. dxe5 {[%emt 0:00:30]} Nb4 {[%emt 0:00:30]} 9. Be4 {[%emt 0:00:30]} Qxd1+ {[%emt 0:00:30]} 10. Kxd1 {[%emt 0:00:30]} Nd7 {[%emt 0:00:30]} 11. Bd2 {[%emt 0:00:30]} Nc5 {[%emt 0:00:30]} 12. Bxb4 {[%emt 0:00:30]} Nxe4 {[%emt 0:00:30]} 13. Bxf8 {[%emt 0:00:30]} Rxf8 {[%emt 0:00:30]} 14. Ke2 {[%emt 0:00:30]} Ke7 {[%emt 0:00:30]} 15. Rc1 {[%emt 0:00:30]} Bd7 {[%emt 0:00:30]} 16. Ke3 {[%emt 0:00:30]} f5 {[%emt 0:00:30]} 17. Nbd2 {[%emt 0:00:30]} Nxd2 {[%emt 0:00:30]} 18. Nxd2 {[%emt 0:00:30]} f4+ {[%emt 0:00:30]} 19. Kd4 {[%emt 0:00:30]} Bc6 {[%emt 0:00:30]} 20. Nc4 {[%emt 0:00:30]} Rad8+ {[%emt 0:00:30]} 21. Nd6 {[%emt 0:00:30]} g5 {[%emt 0:00:30]} 22. Rc2 {[%emt 0:00:30]} g4 {[%emt 0:00:30]} 23. g3 {[%emt 0:00:30]} h5 {[%emt 0:00:30]} 24. a4 {[%emt 0:00:30]} h4 {[%emt 0:00:30]} 25. a5 {[%emt 0:00:30]} a6 {[%emt 0:00:30]} 26. Kc5 {[%emt 0:00:30]} fxg3 {[%emt 0:00:30]} 27. fxg3 {[%emt 0:00:30]} h3 {[%emt 0:00:30]} 28. Rc4 {[%emt 0:00:30]} Rf2 {[%emt 0:00:30]} 29. Rxg4 {[%emt 0:00:30]} Rc2+ {[%emt 0:00:30]} 30. Kd4 {[%emt 0:00:30]} Rxh2 {[%emt 0:00:30]} 31. Rg7+ {[%emt 0:00:30]} Kf8 {[%emt 0:00:30]} 32. Rg5 {[%emt 0:00:30]} Ke7 {[%emt 0:00:30]} 33. Rg7+ {[%emt 0:00:30]} Kf8 {[%emt 0:00:30]} 34. Rg5 {[%emt 0:00:30]} Ke7 {[%emt 0:00:30]} 35. Ke3 {[%emt 0:00:30]} Rxd6 {[%emt 0:00:30]} 36. exd6+ {[%emt 0:00:30]} Kxd6 {[%emt 0:00:30]} 37. Rh5 {[%emt 0:00:30]} Rxb2 {[%emt 0:00:30]} 38. Rxh3 {[%emt 0:00:30]} Rb3+ {[%emt 0:00:30]} 39. Kf4 {[%emt 0:00:30]} e5+ {[%emt 0:00:30]} 40. Kg5 {[%emt 0:00:30]} e4 {[%emt 0:00:30]} 41. Rh6+ {[%emt 0:00:30]} Ke5 {[%emt 0:00:30]} 42. g4 {[%emt 0:00:30]} e3 {[%emt 0:00:30]} 43. Rh7 {[%emt 0:00:30]} Ke4 {[%emt 0:00:30]} 44. Re7+ {[%emt 0:00:30]} Kf3 {[%emt 0:00:30]} 45. Rf7+ {[%emt 0:00:30]} Kg3 {[%emt 0:00:30]} 46. Rff1 {[%emt 0:00:30]} Rb5+ {[%emt 0:00:30]} 47. Kf6 {[%emt 0:00:30]} Kxg4 {[%emt 0:00:30]} 48. Rae1 {[%emt 0:00:30]} Bg2 {[%emt 0:00:30]} 49. Rg1 {[%emt 0:00:30]} Kf3 {[%emt 0:00:30]} 50. Rxg2 {[%emt 0:00:30]} Kxg2 {[%emt 0:00:30]} 51. Rxe3 {[%emt 0:00:30]} Rxa5 {[%emt 0:00:30]} 52. Rb3 {[%emt 0:00:30]} b5 {[%emt 0:00:30]} 53. Ke5 {[%emt 0:00:30]} Ra4 {[%emt 0:00:30]} 54. Kd5 {[%emt 0:00:30]} b4 {[%emt 0:00:30]} 55. Kc4 {[%emt 0:00:30]} a5 {[%emt 0:00:30]} 56. Re3 {[%emt 0:00:30]} Ra1 {[%emt 0:00:30]} 57. Rd3 {[%emt 0:00:30]} Kf2 {[%emt 0:00:30]} 58. Rh3 {[%emt 0:00:30]} Ke2 {[%emt 0:00:30]} 59. Rh2+ {[%emt 0:00:30]} Ke3 {[%emt 0:00:30]} 60. Rh3+ {[%emt 0:00:30]} Kd2 {[%emt 0:00:30]} 61. Rh2+ {[%emt 0:00:30]} Kc1 {[%emt 0:00:30]} 62. Rg2 {[%emt 0:00:30]} Kb1 {[%emt 0:00:30]} 63. Rh2 {[%emt 0:00:30]} Ra2 {[%emt 0:00:30]} 64. Rh1+ {[%emt 0:00:30]} Kb2 {[%emt 0:00:30]} 65. Rh3 {[%emt 0:00:30]} Ra1 {[%emt 0:00:30]} 66. Rb3+ {[%emt 0:00:30]} Ka2 {[%emt 0:00:30]} 67. Rh3 {[%emt 0:00:30]} Rc1+ {[%emt 0:00:30]} 68. Kb5 {[%emt 0:00:30]} b3 {[%emt 0:00:30]} 0-1

[Event "PanAm Intercolleagiate-ch 2019"]
[Site "Charlotte"]
[Date "2019.12.30"]
[Round "6.2"]
[White "Shtembuliak, Evgeny"]
[Black "Stremavicius, Titas"]
[Result "1-0"]
[ECO "D35"]
[WhiteElo "2600"]
[BlackElo "2519"]
[Annotator "ChessBase"]
[PlyCount "67"]
[EventDate "2019.12.27"]
[EventType "team-tourn"]
[EventCountry "USA"]
[SourceTitle "playchess.com"]
[Source "ChessBase"]
[SourceQuality "1"]
[TimeControl "5400+30"]

1. c4 {[%emt 1:30:30]} e6 {[%emt 1:30:30]} 2. Nc3 {[%emt 0:00:30]} d5 {[%emt 0:00:30]} 3. d4 {[%emt 0:00:30]} Nf6 {[%emt 0:00:30]} 4. cxd5 {[%emt 0:00:30]} exd5 5. Bg5 {[%emt 0:00:30]} Nbd7 {[%emt 0:01:00]} 6. e3 {[%emt 0:00:30]} Be7 {[%emt 0:00:30]} 7. Bd3 {[%emt 0:00:30]} c6 {[%emt 0:00:30]} 8. Nge2 {[%emt 0:00:30]} h6 {[%emt 0:00:30]} 9. Bh4 {[%emt 0:00:30]} Nh5 {[%emt 0:00:30]} 10. Bxe7 {[%emt 0:00:30]} Qxe7 {[%emt 0:00:30]} 11. Qd2 {[%emt 0:00:30]} Nb6 {[%emt 0:00:30]} 12. O-O {[%emt 0:00:30]} O-O {[%emt 0:00:30]} 13. f3 {[%emt 0:00:30]} Nf6 {[%emt 0:00:30]} 14. Rae1 {[%emt 0:00:30]} Be6 {[%emt 0:00:30]} 15. b3 {[%emt 0:00:30]} Rad8 {[%emt 0:00:30]} 16. e4 {[%emt 0:00:30]} dxe4 {[%emt 0:00:30]} 17. fxe4 {[%emt 0:00:30]} Bg4 {[%emt 0:00:30]} 18. e5 {[%emt 0:00:30]} Nfd5 {[%emt 0:00:30]} 19. Bb1 {[%emt 0:00:30]} c5 {[%emt 0:00:30]} 20. Ne4 {[%emt 0:00:30]} Bxe2 {[%emt 0:00:30]} 21. Rxe2 {[%emt 0:00:30]} cxd4 {[%emt 0:00:30]} 22. Nf6+ {[%emt 0:00:30]} Kh8 {[%emt 0:00:30]} 23. Re4 {[%emt 0:00:30]} d3 {[%emt 0:00:30]} 24. b4 {[%emt 0:00:30]} Nxf6 {[%emt 0:00:30]} 25. Rxf6 {[%emt 0:00:30]} Kg8 {[%emt 0:00:30]} 26. Bxd3 {[%emt 0:00:30]} Rxd3 {[%emt 0:00:30]} 27. Qxd3 {[%emt 0:00:30]} gxf6 {[%emt 0:00:30]} 28. Rg4+ {[%emt 0:00:30]} Kh8 {[%emt 0:00:30]} 29. Qe3 {[%emt 0:00:30]} Kh7 {[%emt 0:00:30]} 30. Rh4 {[%emt 0:00:30]} Kg6 {[%emt 0:00:30]} 31. Rxh6+ {[%emt 0:00:30]} Kg7 {[%emt 0:00:30]} 32. exf6+ {[%emt 0:00:30]} Qxf6 {[%emt 0:00:30]} 33. Rxf6 {[%emt 0:00:30]} Kxf6 {[%emt 0:00:30]} 34. Qf3+ {[%emt 0:00:30]} 1-0

[Event "PanAm Intercolleagiate-ch 2019"]
[Site "Charlotte"]
[Date "2019.12.30"]
[Round "6.3"]
[White "Reshef, Omer"]
[Black "Vorontsov, Pavlo"]
[Result "1-0"]
[ECO "B06"]
[WhiteElo "2458"]
[BlackElo "2539"]
[Annotator "ChessBase"]
[PlyCount "65"]
[EventDate "2019.12.27"]
[EventType "team-tourn"]
[EventCountry "USA"]
[SourceTitle "playchess.com"]
[Source "ChessBase"]
[SourceQuality "1"]
[TimeControl "5400+30"]

1. e4 {[%emt 1:30:30]} g6 {[%emt 1:30:30]} 2. d4 {[%emt 0:00:30]} Bg7 {[%emt 0:00:30]} 3. Nc3 {[%emt 0:00:30]} d6 {[%emt 0:00:30]} 4. Nf3 {[%emt 0:00:30]} a6 {[%emt 0:00:30]} 5. h3 {[%emt 0:00:30]} b5 {[%emt 0:00:30]} 6. Bd3 {[%emt 0:00:30]} Nd7 {[%emt 0:00:30]} 7. a4 {[%emt 0:00:30]} b4 {[%emt 0:00:30]} 8. Ne2 {[%emt 0:00:30]} Bb7 {[%emt 0:00:30]} 9. O-O {[%emt 0:00:30]} Ngf6 {[%emt 0:00:30]} 10. Ng3 {[%emt 0:00:30]} c5 {[%emt 0:00:30]} 11. c3 {[%emt 0:00:30]} bxc3 {[%emt 0:00:30]} 12. bxc3 {[%emt 0:00:30]} O-O {[%emt 0:00:30]} 13. a5 {[%emt 0:00:30]} Qc7 {[%emt 0:00:30]} 14. Bg5 {[%emt 0:00:30]} h6 {[%emt 0:00:30]} 15. Be3 {[%emt 0:00:30]} d5 {[%emt 0:00:30]} 16. e5 {[%emt 0:00:30]} Ne4 {[%emt 0:00:30]} 17. Ne2 {[%emt 0:00:30]} Rfc8 {[%emt 0:00:30]} 18. Nh2 {[%emt 0:00:30]} f6 {[%emt 0:00:30]} 19. Rb1 {[%emt 0:00:30]} e6 {[%emt 0:00:30]} 20. Bxe4 {[%emt 0:00:30]} dxe4 {[%emt 0:00:30]} 21. Nf4 {[%emt 0:00:30]} Nf8 {[%emt 0:00:30]} 22. exf6 {[%emt 0:00:30]} Bxf6 {[%emt 0:00:30]} 23. Ng4 {[%emt 0:00:30]} Bg5 {[%emt 0:00:30]} 24. Nxe6 {[%emt 0:00:30]} Nxe6 {[%emt 0:00:30]} 25. Qb3 {[%emt 0:00:30]} Qd6 {[%emt 0:00:30]} 26. Qxb7 {[%emt 0:00:30]} cxd4 {[%emt 0:00:30]} 27. Bxg5 {[%emt 0:00:30]} Nxg5 {[%emt 0:00:30]} 28. Rb6 {[%emt 0:00:30]} Rcb8 {[%emt 0:00:30]} 29. Qxa8 {[%emt 0:00:30]} Qxb6 {[%emt 0:00:30]} 30. axb6 {[%emt 0:00:30]} Rxa8 {[%emt 0:00:30]} 31. Nf6+ {[%emt 0:00:30]} Kf7 {[%emt 0:00:30]} 32. Nd7 {[%emt 0:00:30]} Ke6 {[%emt 0:00:30]} 33. b7 {[%emt 0:00:30]} 1-0